Cogmind - Beta 10.1 @@@ ROGUE MODE // 2020.10.18 @ 14:16:11 Player: Andru7428 Result: Self-destructed Performance ------------- Evolutions (4) 2000 Regions Visited (16) 3200 Robots Destroyed (303) 1515 Value Destroyed (8825) 8825 Prototype IDs (28) 560 Alien Tech Used (1) 200 Bonus (-539) -539 TOTAL SCORE: 15761 Bonus ------- Triggered High Security 500 High Alert Combat Kills 1883 Follower Combat Kills 386 Met Data Miner 300 Friendly Fire -3608 Cogmind --------- Core Integrity 726/850 Matter 187/300 Energy 40/160 System Corruption 2% Temperature Cool (0) Movement Hovering (128) Ox1 Location -6/Factory Parts ------- > --- POWER (2) -------- Light Fission Core > --- PROPULSION (4) --- Improved Airjet Combat Airjet Combat Airjet > --- UTILITY (7) ------ Improved Cooling System Large Storage Unit Large Storage Unit Advanced Signal Interpreter Launcher Guidance Computer Hardened Medium Armor Plating Hacking Suite > --- WEAPON (3) ------- Advanced EMP Blaster Advanced EMP Blaster Powered Hammer > --- INVENTORY (16) --- Large Storage Unit Advanced Sensor Array Advanced ECM Suite Hardened Medium Armor Plating Enhanced Autogun Enhanced Autogun Enhanced Autogun Flak Gun Improved Datajack Dirty Bomb Trap Peak State ------------ > --- POWER ------------ Light Fission Core Antimatter Reactor > --- PROPULSION ------- Improved Airjet Combat Airjet Combat Airjet Combat Airjet > --- UTILITY ---------- Improved Cooling System Large Storage Unit Large Storage Unit Advanced Signal Interpreter Launcher Guidance Computer Hardened Medium Armor Plating Hacking Suite > --- WEAPON ----------- Advanced EMP Blaster Advanced EMP Blaster Powered Hammer > --- INVENTORY -------- Large Storage Unit Advanced Sensor Array Advanced ECM Suite Hardened Medium Armor Plating Enhanced Autogun Enhanced Autogun Enhanced Autogun Flak Gun Advanced EMP Blaster Improved Datajack Dirty Bomb Trap [Rating: 67] Favorites ----------- Power Cooled Ion Engine Engine Cooled Ion Engine Power Core Nuclear Core Reactor Antimatter Reactor Propulsion Light Treads Treads Light Treads Leg Aluminum Leg Wheel Compact Wheel Hover Unit Combat Airjet Flight Unit Improved VTOL Module Utility Large Storage Unit Device Improved Heat Sink Storage Large Storage Unit Processor Advanced Targeting Computer Hackware Hacking Suite Protection Makeshift Armor Plating Weapon Autogun Energy Gun Improved EM Shotgun Energy Cannon Improved EM Pulse Cannon Ballistic Gun Autogun Launcher Advanced EMP Blaster Impact Weapon Powered Hammer Special Melee Weapon Datajack Build | -11 -10 -10 -9 -9 -9 -8 -8 -8 -7 -7 -7 -7 -7 -7 -6 -6 ------- Run | Scr Mat Min Mat Min Exi Min Mat Sto Fac Was Fac Low Low Dat Pro Fac Slots Evolved 8 | . . . 2 . . . 2 . 2 . . . . . . 2 Power . | . . . . . . . . . . . . . . . . . Propulsion 2 | . . . . . . . . . 1 . . . . . . 1 Utility 5 | . . . 1 . . . 2 . 1 . . . . . . 1 Weapon 1 | . . . 1 . . . . . . . . . . . . . Parts Attached 246 | 6 12 5 29 6 1 4 20 46 85 2 10 2 2 2 9 5 Power 15 | 1 . . 2 . . . 2 4 3 1 . . . . 2 . Engine 9 | 1 . . 2 . . . . 2 3 1 . . . . . . Core 5 | . . . . . . . 2 2 . . . . . . 1 . Reactor 1 | . . . . . . . . . . . . . . . 1 . Propulsion 37 | 2 1 1 11 . . . 5 5 10 . . . . . 1 1 Treads 26 | 2 1 1 9 . . . 5 4 4 . . . . . . . Leg 1 | . . . 1 . . . . . . . . . . . . . Wheel 1 | . . . 1 . . . . . . . . . . . . . Hover 8 | . . . . . . . . . 6 . . . . . 1 1 Flight 1 | . . . . . . . . 1 . . . . . . . . Utility 71 | 1 3 . 4 . 1 . 9 7 28 1 9 . 2 . 4 2 Device 36 | . . . 1 . . . 4 3 19 . 4 . 1 . 2 2 Storage 8 | 1 3 . 1 . 1 . . . . . 2 . . . . . Processor 5 | . . . . . . . 2 . 2 . . . . . 1 . Hackware 2 | . . . . . . . . . 1 . 1 . . . . . Protection 20 | . . . 2 . . . 3 4 6 1 2 . 1 . 1 . Artifact . | . . . . . . . . . . . . . . . . . Weapon 123 | 2 8 4 12 6 . 4 4 30 44 . 1 2 . 2 2 2 Energy Gun 15 | . 2 . 5 3 . 1 . 4 . . . . . . . . Energy Cannon 3 | . . . 1 . . . 2 . . . . . . . . . Ballistic Gun 50 | 2 5 2 4 . . 2 2 16 17 . . . . . . . Ballistic Cannon . | . . . . . . . . . . . . . . . . . Launcher 37 | . . 2 1 3 . 1 . 7 16 . 1 1 . 2 1 2 Special Weapon . | . . . . . . . . . . . . . . . . . Impact Weapon 17 | . . . 1 . . . . 3 11 . . 1 . . 1 . Slashing Weapon . | . . . . . . . . . . . . . . . . . Piercing Weapon . | . . . . . . . . . . . . . . . . . Special Melee Weapon 1 | . 1 . . . . . . . . . . . . . . . Unidentified Prototypes 13 | . . . 4 . . . . 7 1 . . . . . 1 . Parts Lost 25 | . 2 1 2 . . 2 . . 9 . 1 1 . . 3 4 Power 4 | . . . 1 . . . . . 2 . . . . . . 1 Propulsion 6 | . . 1 1 . . . . . 2 . . . . . 1 1 Utility 4 | . . . . . . . . . 3 . . . . . 1 . Weapon 11 | . 2 . . . . 2 . . 2 . 1 1 . . 1 2 Highest Loss Streak 4 | . 1 1 1 . . 2 . . 3 . 1 1 . . 2 4 Average Slot Usage (%) 99 | . 98 99 99 100 100 99 99 99 98 100 100 100 100 85 94 99 Engine 8 | . 14 14 10 11 11 11 1 3 6 7 7 7 7 7 3 . Core 1 | . . . . . . . 7 5 . . . . . . 3 6 Treads 17 | . 27 27 21 22 22 22 18 18 15 . . . . . . . Hover 5 | . . . . . . . . . 7 23 23 23 23 23 21 24 Device 6 | . . . . . . . 10 13 13 7 6 7 5 7 3 6 Storage 19 | . 26 28 22 22 22 22 18 18 15 15 15 15 15 15 14 12 Processor 5 | . . . . . . . 6 9 12 7 7 7 7 7 8 12 Hackware 2 | . . . . . . . . . 1 7 14 15 15 15 12 6 Protection 4 | . . . 9 11 11 11 9 4 1 7 1 . 1 . 3 6 Energy Gun 3 | . 8 . 4 10 11 10 . 1 . . . . . . . . Energy Cannon 1 | . . . . . . . 8 3 . . . . . . . . Ballistic Gun 17 | . 19 27 28 22 22 21 18 20 16 . . . . . . . Launcher 2 | . . . . . . . . . 2 15 15 15 15 1 14 12 Impact Weapon 1 | . . . . . . . . 1 3 7 7 7 7 7 7 6 Naked Turns . | . . . . . . . . . . . . . . . . . Heaviest Build 80 | 11 43 42 56 53 53 53 65 65 66 66 66 58 65 58 79 80 Greatest Support 79 | 40 40 40 40 40 40 40 42 43 74 66 66 66 66 66 66 79 Greatest Overweight (x) 3 | . 2 1 2 1 1 1 1 2 3 . . . . . 1 1 Average Overweight (x) . | . . 1 1 1 1 1 1 1 . . . . . . . . Largest Inventory Capacity 22 | 6 18 16 22 16 16 16 16 16 16 16 16 16 16 16 16 16 Average Capacity 15 | 5 14 16 16 16 16 16 16 16 16 16 16 16 16 16 16 16 Most Carried 16 | 4 16 16 16 16 16 16 16 16 16 16 16 16 16 16 16 12 Average Carried 15 | 2 10 15 15 15 16 14 15 15 15 15 15 15 16 16 14 11 Final Capacity 16 | 6 16 16 16 16 16 16 16 16 16 16 16 16 16 16 16 16 Final Carried 16 | 4 16 15 16 16 16 14 16 16 13 16 16 16 16 16 12 10 Class Distribution -------------------- 33% | Mutant 25% | Tank 16% | Gunner 9% | Hacker-Mutant 8% | Skirmisher Dominant Class ---------------- Mutant | -10/Materials Mutant | -10/Mines Tank | -9/Materials Tank | -9/Mines Tank | -9/Exiles Tank | -8/Mines Gunner | -8/Materials Gunner | -8/Storage Mutant | -7/Factory Mutant | -7/Waste Hacker-Mutant | -7/Factory Hacker-Mutant | -7/Lower Caves Hacker-Mutant | -7/Lower Caves Hacker-Mutant | -7/Data Miner Hacker-Mutant | -6/Proximity Caves Mutant | -6/Factory Resources | -11 -10 -10 -9 -9 -9 -8 -8 -8 -7 -7 -7 -7 -7 -7 -6 -6 ----------- Run | Scr Mat Min Mat Min Exi Min Mat Sto Fac Was Fac Low Low Dat Pro Fac Matter Collected 6016 | 223 364 55 1032 88 50 112 617 974 1953 56 106 11 191 . 184 . Remotely . | . . . . . . . . . . . . . . . . . Salvage Created 12892 | . 670 42 1378 159 . 106 1323 2535 4926 603 342 . 183 . 111 514 Parts 632 | . 41 11 97 14 . 6 71 117 213 10 16 . 6 . 8 22 Haulers Intercepted 14 | . 2 . 4 . . . 2 5 1 . . . . . . . Recyclers Shooed 2 | . . . 1 . . . . . . . . . . . . 1 Parts Field Recycled . | . . . . . . . . . . . . . . . . . Retrieved Matter . | . . . . . . . . . . . . . . . . . Parts Self-Destructed 21 | . . . . . . . . . . . . . 1 . 20 . Prevented 10 | . . . . . . . . . . . . 4 5 . 1 . Kills | -11 -10 -10 -9 -9 -9 -8 -8 -8 -7 -7 -7 -7 -7 -7 -6 -6 ------- Run | Scr Mat Min Mat Min Exi Min Mat Sto Fac Was Fac Low Low Dat Pro Fac Combat Hostiles Destroyed 211 | . 15 4 26 11 . 6 23 39 66 . 7 . 3 . 5 6 Guns 102 | . 15 1 23 . . 1 12 28 22 . . . . . . . Cannons 11 | . . . . . . . 11 . . . . . . . . . AOE 87 | . . 3 3 11 . 5 . 11 38 . 7 . 2 . 4 3 Classes Destroyed 17 | . 5 1 4 . . . 1 4 2 . . . . . . . Worker 14 | . . . 1 . . . 2 4 3 . 1 . . . . 3 Builder 12 | . . . 1 . . . . 1 8 . . . . . . 2 Tunneler 1 | . . 1 . . . . . . . . . . . . . . Hauler 14 | . 2 . 4 . . . 2 5 1 . . . . . . . Recycler 14 | . . . 2 . . . 1 2 9 . . . . . . . Mechanic 1 | . . . . . . . . . 1 . . . . . . . Operator 5 | . 1 . . . . . 1 1 1 . 1 . . . . . Watcher 13 | . 3 . 1 . . . 2 2 4 . 1 . . . . . Swarmer 62 | . 6 4 7 7 . 3 8 7 11 . 4 . . . 5 . Grunt 96 | . 9 . 9 4 . 3 10 20 31 . 3 . 2 . . 5 Brawler 10 | . . . . . . . . 4 4 . . . 1 . . 1 Duelist 7 | . . . . . . . . 2 5 . . . . . . . Protector 4 | . . . . . . . . 1 3 . . . . . . . Sentry 27 | . . . 10 . . . 4 8 5 . . . . . . . Demolisher 1 | . . . . . . . . 1 . . . . . . . . Hunter 5 | . . . . . . . 1 2 2 . . . . . . . Programmer 5 | . . . . . . . . . 5 . . . . . . . Wasp 11 | . . . . . . . . . . 11 . . . . . . Martyr 1 | . . . . . . . . . . 1 . . . . . . Best Kill Streak 12 | . 3 3 4 4 . 6 8 12 10 . 4 . 3 . 3 11 Combat Bots Only 11 | . 3 3 4 4 . 6 6 11 9 . 3 . 3 . 3 6 Max Kills in Single Turn 10 | . 2 2 3 3 . 1 2 10 6 1 3 . 2 . 3 2 Gunslinging 1 | . 1 . . . . . . . . . . . . . . . Exploded 5 | . . 1 3 3 . 1 . 4 5 . 3 . 2 . 3 1 Melee . | . . . . . . . . . . . . . . . . . Uniques/NPCs Destroyed . | . . . . . . . . . . . . . . . . . Combat | -11 -10 -10 -9 -9 -9 -8 -8 -8 -7 -7 -7 -7 -7 -7 -6 -6 -------- Run | Scr Mat Min Mat Min Exi Min Mat Sto Fac Was Fac Low Low Dat Pro Fac Damage Taken 7082 | . 423 108 665 122 . 442 578 914 2446 . 354 27 27 . 541 435 Core 1052 | . 64 . 237 17 . 60 41 105 303 . 24 . . . 77 124 Absorbed by Shields 22 | . . . . . . . . 22 . . . . . . . . Core Remaining (%) 62 | 100 . 74 . . . 21 . 73 . . . . . . 42 . Volleys Fired 400 | . 56 5 53 8 . 9 51 61 131 2 9 . 3 . 6 6 Largest 3 | . 2 2 3 1 . 3 3 3 3 2 2 . 2 . 2 2 Hottest 125 | . 70 46 91 33 . 91 115 125 81 72 72 . 72 . 72 72 Shots Fired 958 | . 112 6 156 8 . 19 152 174 279 4 17 1 6 . 14 10 Gun 734 | . 112 2 155 . . 15 102 150 198 . . . . . . . Cannon 68 | . . . . . . . 50 18 . . . . . . . . Launcher 156 | . . 4 1 8 . 4 . 6 81 4 17 1 6 . 14 10 Special . | . . . . . . . . . . . . . . . . . Kinetic 664 | . 83 2 145 . . 10 102 124 198 . . . . . . . Thermal 1 | . 1 . . . . . . . . . . . . . . . Explosive 18 | . . 4 1 8 . 4 . 1 . . . . . . . . Electromagnetic 275 | . 28 . 10 . . 5 50 49 81 4 17 1 6 . 14 10 Robot Hit Streak 28 | . 8 4 14 6 . 6 28 23 20 4 3 . 5 . 1 8 Robot Miss Streak 4 | . 2 1 2 . . 4 3 3 2 . 2 1 . . 3 1 Penetration Max 1 | . . . . . . . . 1 1 . . . . . . . Secondary Targets 7 | . 1 . 1 . . . . 3 2 . . . . . . . Max Gunslinging Chain 1 | . 1 . 1 . . . . 1 1 . . . . . . . Shots Hit Robots 618 | . 75 4 99 3 . 9 99 120 167 20 6 . 5 . 2 9 Core Hits 439 | . 28 5 53 14 . 10 47 90 155 4 11 . 4 . 4 14 Critical Hits 6 | . . . 1 . . . 1 2 2 . . . . . . . Critical Kills 1 | . . . . . . . . . 1 . . . . . . . Critical Parts Destroyed 5 | . . . 1 . . . 1 2 1 . . . . . . . Melee Attacks 84 | . . . 1 . . . . 40 12 16 10 . . . 4 1 Impact 84 | . . . 1 . . . . 40 12 16 10 . . . 4 1 Slashing . | . . . . . . . . . . . . . . . . . Piercing . | . . . . . . . . . . . . . . . . . Sneak Attacks 18 | . . . . . . . . 2 . 16 . . . . . . Combat Hostiles . | . . . . . . . . . . . . . . . . . Follow-up Attacks . | . . . . . . . . . . . . . . . . . Damage Inflicted 23758 | . 908 356 1667 789 . 498 2080 4618 9169 1488 665 . 202 . 344 974 Guns 9049 | . 908 16 1530 . . 82 936 2621 2956 . . . . . . . Cannons 1500 | . . . . . . . 1109 391 . . . . . . . . Explosions 11626 | . . 340 137 789 . 416 35 1489 6172 89 639 . 202 . 344 974 Melee 1581 | . . . . . . . . 117 39 1399 26 . . . . . Ramming 2 | . . . . . . . . . 2 . . . . . . . Kinetic 7956 | . 616 16 1389 . . 49 936 1994 2956 . . . . . . . Thermal 1686 | . . . . . . 56 35 439 834 . 77 . . . 108 137 Explosive 2438 | . . 340 137 789 . 360 . 422 390 . . . . . . . Electromagnetic 10095 | . 292 . 141 . . 33 1109 1646 4948 89 562 . 202 . 236 837 Impact 1581 | . . . . . . . . 117 39 1399 26 . . . . . Slashing . | . . . . . . . . . . . . . . . . . Piercing . | . . . . . . . . . . . . . . . . . Highest Corruption 6 | . 3 3 . . . . . 3 5 5 6 6 6 6 6 2 Average Corruption 3 | . 2 3 . . . . . 2 2 5 5 6 6 6 6 1 Corruption Purged . | . . . . . . . . . . . . . . . . . Effects 156 | . 16 22 . . . . . 28 27 4 18 8 12 2 19 . Message Errors 34 | . 5 5 . . . . . 3 8 . 3 2 1 1 6 . Matter Fused 31 | . 4 7 . . . . . 2 4 1 2 3 4 . 4 . Heat Flow Errors 16 | . 2 2 . . . . . 5 2 . 2 . . 1 2 . Energy Discharges 22 | . 1 4 . . . . . 6 1 1 6 1 1 . 1 . Parts Rejected 1 | . . . . . . . . . 1 . . . . . . . Data Loss (minor) 19 | . 2 4 . . . . . 4 1 . 1 1 3 . 3 . Data Loss (major) 3 | . . . . . . . . . . 1 1 . 1 . . . Misfires 6 | . . . . . . . . . . . 2 1 1 . 2 . Targeting Errors 19 | . 2 . . . . . . 5 9 1 1 . . . 1 . Weapon Failures 5 | . . . . . . . . 3 1 . . . 1 . . . Overload Shots . | . . . . . . . . . . . . . . . . . Overflow Damage 1223 | . . 39 2 . . . 4 99 363 604 13 26 . . 41 32 Projectiles 58 | . . . . . . . 4 54 . . . . . . . . Explosions 525 | . . 39 2 . . . . 13 363 . 9 26 . . 41 32 Melee 640 | . . . . . . . . 32 . 604 4 . . . . . Knockbacks 9 | . . . . . . . . . . 9 . . . . . . Impact 7 | . . . . . . . . . . 7 . . . . . . Kinetic . | . . . . . . . . . . . . . . . . . Secondary 2 | . . . . . . . . . . 2 . . . . . . Self-Inflicted Damage 1335 | . . 49 . . . 153 . 13 432 . 145 27 27 . 190 299 Shots 47 | . . 2 . . . 4 . 1 16 . 6 1 1 . 9 7 Rammed 1 | . . . . . . . . . 1 . . . . . . . Targets Rammed 1 | . . . . . . . . . 1 . . . . . . . Kicked . | . . . . . . . . . . . . . . . . . Crushed . | . . . . . . . . . . . . . . . . . Highest Temperature 267 | . 96 189 172 5 . 211 159 246 244 6 146 . 10 162 267 48 Average Temperature 50 | . 27 85 37 2 . 90 59 51 38 4 41 . 4 86 77 21 Received Heat Transfer 1701 | . 180 . 159 33 . 90 198 333 579 . 66 . . . . 63 Effects 3 | . . . . . . . . . . . . . . . 3 . Interference 3 | . . . . . . . . . . . . . . . 3 . Siege Activations . | . . . . . . . . . . . . . . . . . Robots Corrupted 15 | . 1 . . . . . . . 7 1 1 . 1 . 1 3 Combat Hostiles 12 | . . . . . . . . . 6 1 . . 1 . 1 3 Parts Fried 61 | . 4 . . . . . 8 3 31 5 7 . . . . 3 Impact Corruptions 19 | . . . . . . . . 1 . 17 1 . . . . . Robots Melted . | . . . . . . . . . . . . . . . . . Combat Hostiles . | . . . . . . . . . . . . . . . . . Parts Melted 1 | . . . . . . . . 1 . . . . . . . . Heat Transferred 1650 | . . . . . . . 50 450 850 . 100 . . . . 200 Parts Sabotaged . | . . . . . . . . . . . . . . . . . Parts Stolen . | . . . . . . . . . . . . . . . . . Parts Stripped . | . . . . . . . . . . . . . . . . . Power Chain Reactions 24 | . . . . . . 1 1 4 11 . 4 . . . 2 1 Missiles Intercepted . | . . . . . . . . . . . . . . . . . Alert | -11 -10 -10 -9 -9 -9 -8 -8 -8 -7 -7 -7 -7 -7 -7 -6 -6 ------- Run | Scr Mat Min Mat Min Exi Min Mat Sto Fac Was Fac Low Low Dat Pro Fac Peak Influence 2029 | . 292 83 399 175 . 145 361 645 2029 1100 837 . . . . 321 Initial 1100 | . . 57 . 25 . . . 1 288 1100 770 . . . . 75 Average 306 | . 148 38 131 57 . 31 118 385 601 1100 386 . . . . 98 Maximum Alert Level 5 | . 1 . 1 . . . 1 2 5 4 3 . . . . 1 Low Security (%) 58 | 100 72 100 74 100 . 100 73 31 34 . . . . . . 95 Level 1 18 | . 27 . 25 . . . 26 7 24 . 64 . . . . 4 Level 2 9 | . . . . . . . . 60 2 . 25 . . . . . Level 3 5 | . . . . . . . . . 19 . 9 . . . . . Level 4 6 | . . . . . . . . . 13 100 . . . . . . Level 5 . | . . . . . . . . . . . . . . . . . High Security 1 | . . . . . . . . . 5 . . . . . . . Max Security . | . . . . . . . . . . . . . . . . . Squads Dispatched 38 | . 4 . 2 . . . 1 6 22 . 2 . . . . 1 Investigation 9 | . 2 . 2 . . . . 1 2 . 1 . . . . 1 Extermination 5 | . . . . . . . . . 5 . . . . . . . Reinforcement 9 | . 2 . . . . . 1 2 3 . 1 . . . . . Assault 13 | . . . . . . . . 1 12 . . . . . . . Garrison 2 | . . . . . . . . 2 . . . . . . . . Intercept . | . . . . . . . . . . . . . . . . . Construction Impeded 1 | . . . . . . . . . 1 . . . . . . . Haulers Reinforced . | . . . . . . . . . . . . . . . . . Stealth | -11 -10 -10 -9 -9 -9 -8 -8 -8 -7 -7 -7 -7 -7 -7 -6 -6 --------- Run | Scr Mat Min Mat Min Exi Min Mat Sto Fac Was Fac Low Low Dat Pro Fac Distress Signals 15 | . 3 . 5 . . . 4 2 1 . . . . . . . Communications Jammed . | . . . . . . . . . . . . . . . . . Distress Signals . | . . . . . . . . . . . . . . . . . Times Spotted 332 | . 29 7 42 16 . 6 44 48 110 . 11 . 2 . 8 9 Peak Tracking Total 13 | . 4 3 6 6 . 6 5 6 13 . 3 . 3 . 3 6 Tactical Retreats 21 | . 1 1 1 3 . . 3 1 7 . 3 . . . . 1 Traps | -11 -10 -10 -9 -9 -9 -8 -8 -8 -7 -7 -7 -7 -7 -7 -6 -6 ------- Run | Scr Mat Min Mat Min Exi Min Mat Sto Fac Was Fac Low Low Dat Pro Fac Traps Triggered 22 | . 3 . . . . . . 7 10 . 1 . . . . 1 Indirectly 7 | . . . . . . . . 1 6 . . . . . . . Trap Hack Attempts 2 | . 2 . . . . . . . . . . . . . . . Triggered . | . . . . . . . . . . . . . . . . . Disarmed . | . . . . . . . . . . . . . . . . . Reprogrammed 1 | . 1 . . . . . . . . . . . . . . . Reused 1 | . 1 . . . . . . . . . . . . . . . Traps Extracted . | . . . . . . . . . . . . . . . . . Installed . | . . . . . . . . . . . . . . . . . Triggered 4 | . 1 . . . . . . 1 . . . 1 1 . . . Machines | -11 -10 -10 -9 -9 -9 -8 -8 -8 -7 -7 -7 -7 -7 -7 -6 -6 ---------- Run | Scr Mat Min Mat Min Exi Min Mat Sto Fac Was Fac Low Low Dat Pro Fac Machines Disabled 42 | . . . . . . . 1 6 26 . 5 . . . . 4 Max in Single Turn 6 | . . . . . . . 1 3 6 . 2 . . . . 4 Garrison Access 4 | . . . . . . . . 1 3 . . . . . . . Machines Sabotaged . | . . . . . . . . . . . . . . . . . Garrisons Compromised . | . . . . . . . . . . . . . . . . . Overloaded Fab Kills . | . . . . . . . . . . . . . . . . . Fab Network Shutdowns . | . . . . . . . . . . . . . . . . . Hacking | -11 -10 -10 -9 -9 -9 -8 -8 -8 -7 -7 -7 -7 -7 -7 -6 -6 --------- Run | Scr Mat Min Mat Min Exi Min Mat Sto Fac Was Fac Low Low Dat Pro Fac Machines Accessed 70 | . 7 . 14 1 1 . 7 10 17 . 6 . . 4 . 3 Terminals 43 | . 5 . 11 1 . . 5 9 6 . 4 . . . . 2 Fabricators 6 | . . . . . . . . . 4 . 1 . . . . 1 Repair Stations 5 | . . . 1 . . . 1 . 2 . 1 . . . . . Recycling Units 2 | . 2 . . . . . . . . . . . . . . . Scanalyzers 5 | . . . 2 . . . 1 . 2 . . . . . . . Garrison Access 4 | . . . . . . . . 1 3 . . . . . . . Total Hacks 192 | . 15 . 41 4 1 . 28 22 38 . 15 . . 20 . 8 Successful 119 | . 9 . 21 2 1 . 18 12 22 . 9 . . 20 . 5 Failed 72 | . 6 . 20 2 . . 9 10 16 . 6 . . . . 3 Catastrophic 11 | . 1 . 1 2 . . . 4 2 . 1 . . . . . Database Lockouts 1 | . . . . . . . 1 . . . . . . . . . Manual 85 | . 12 . 24 6 . . 12 14 9 . 5 . . . . 3 Terminals 125 | . 13 . 34 4 . . 22 21 14 . 11 . . . . 6 Fabricators 13 | . . . . . . . . . 8 . 3 . . . . 2 Repair Stations 10 | . . . 3 . . . 2 . 4 . 1 . . . . . Recycling Units 2 | . 2 . . . . . . . . . . . . . . . Scanalyzers 13 | . . . 4 . . . 4 . 5 . . . . . . . Garrison Access 8 | . . . . . . . . 1 7 . . . . . . . Terminal Hacks 61 | . 4 . 9 1 1 . 8 7 4 . 6 . . 20 . 1 Record 7 | . . . . . 1 . . . . . . . . 6 . . Part Schematic 6 | . . . . . . . . . . . . . . 6 . . Robot Schematic 5 | . . . . . . . . . . . . . . 5 . . Robot Analysis 5 | . 2 . 1 . . . 2 . . . . . . . . . Prototype ID Bank 7 | . . . 1 . . . 3 . . . . . . 3 . . Open Door 4 | . . . . . . . . 3 . . . . . . . 1 Branch Access Points 1 | . . . . . . . . . . . 1 . . . . . Terminal Index 3 | . . . 1 . . . 1 . 1 . . . . . . . Alert Level 4 | . . . 1 . . . . 2 . . 1 . . . . . Unreport Threat 13 | . . . 3 1 . . 2 2 1 . 4 . . . . . Locate Traps 5 | . 2 . 1 . . . . . 2 . . . . . . . Hauler Manifests 1 | . . . 1 . . . . . . . . . . . . . Fabricator Hacks 9 | . . . . . . . . . 5 . 2 . . . . 2 Load Schematic 5 | . . . . . . . . . 3 . 1 . . . . 1 Build 4 | . . . . . . . . . 2 . 1 . . . . 1 Repair Station Hacks 8 | . . . 2 . . . 2 . 4 . . . . . . . Scan Component 4 | . . . 1 . . . 1 . 2 . . . . . . . Repair 4 | . . . 1 . . . 1 . 2 . . . . . . . Recycling Unit Hacks . | . . . . . . . . . . . . . . . . . Scanalyzer 12 | . . . 4 . . . 4 . 4 . . . . . . . Insert Component 6 | . . . 2 . . . 2 . 2 . . . . . . . Analyze 6 | . . . 2 . . . 2 . 2 . . . . . . . Garrison Access Hacks 3 | . . . . . . . . 1 2 . . . . . . . Seal Access 3 | . . . . . . . . 1 2 . . . . . . . Unauthorized Hacks 26 | . 5 . 6 1 . . 4 4 3 . 1 . . . . 2 Terminals 23 | . 3 . 6 1 . . 4 4 2 . 1 . . . . 2 Track 15 | . 2 . 4 1 . . 3 2 1 . 1 . . . . 1 Assimilate 1 | . . . . . . . . . 1 . . . . . . . Botnet 6 | . 1 . 2 . . . 1 1 . . . . . . . 1 Disrupt 1 | . . . . . . . . 1 . . . . . . . . Fabricators . | . . . . . . . . . . . . . . . . . Repair Stations . | . . . . . . . . . . . . . . . . . Recycling Units 2 | . 2 . . . . . . . . . . . . . . . Tunnel 2 | . 2 . . . . . . . . . . . . . . . Scanalyzers . | . . . . . . . . . . . . . . . . . Garrison Access 1 | . . . . . . . . . 1 . . . . . . . Jam 1 | . . . . . . . . . 1 . . . . . . . Data Cores Recovered 1 | . . . . . . . 1 . . . . . . . . . Used 1 | . . . . . . . 1 . . . . . . . . . Hacking Detections 52 | . 5 . 12 1 . . 5 7 13 . 6 . . . . 3 Full Trace Events 2 | . . . 1 . . . . . . . 1 . . . . . Feedback Events . | . . . . . . . . . . . . . . . . . Feedback Blocked . | . . . . . . . . . . . . . . . . . Robot Schematics Acquired 5 | . . . . . . . . . . . . . . 5 . . Robots Built . | . . . . . . . . . . . . . . . . . Matter . | . . . . . . . . . . . . . . . . . Time . | . . . . . . . . . . . . . . . . . Total Robot Build Rating . | . . . . . . . . . . . . . . . . . Part Schematics Acquired 11 | . . . 1 . . . 2 . 2 . . . . 6 . . Parts Built 6 | . . . . . . . . . 4 . 2 . . . . . Matter 760 | . . . . . . . . . 380 . 190 . . . . 190 Time 284 | . . . . . . . . . 142 . 47 . . . . 95 Total Part Build Rating 30 | . . . . . . . . . 20 . 10 . . . . . Parts Repaired 4 | . . . 1 . . . 1 . 2 . . . . . . . Time 154 | . . . 32 . . . 53 . 69 . . . . . . . Parts Recycled . | . . . . . . . . . . . . . . . . . Recycled Matter . | . . . . . . . . . . . . . . . . . Retrieved Matter . | . . . . . . . . . . . . . . . . . Retrieved Components . | . . . . . . . . . . . . . . . . . Parts Scanalyzed 5 | . . . 1 . . . 2 . 2 . . . . . . . Part Schematics Acquired 5 | . . . 1 . . . 2 . 2 . . . . . . . Parts Damaged 1 | . . . . . . . 1 . . . . . . . . . Bothacking | -11 -10 -10 -9 -9 -9 -8 -8 -8 -7 -7 -7 -7 -7 -7 -6 -6 ------------ Run | Scr Mat Min Mat Min Exi Min Mat Sto Fac Was Fac Low Low Dat Pro Fac Used RIF Installer . | . . . . . . . . . . . . . . . . . Robots Hacked . | . . . . . . . . . . . . . . . . . Non-combat . | . . . . . . . . . . . . . . . . . Combat . | . . . . . . . . . . . . . . . . . Robot Hacks Applied . | . . . . . . . . . . . . . . . . . Relay Couplers Released 1 | . . . . . . . . . 1 . . . . . . . Machine Destruction 1 | . . . . . . . . . 1 . . . . . . . Robots Rewired . | . . . . . . . . . . . . . . . . . Allies Hacked . | . . . . . . . . . . . . . . . . . Hacks Repelled . | . . . . . . . . . . . . . . . . . Allies | -11 -10 -10 -9 -9 -9 -8 -8 -8 -7 -7 -7 -7 -7 -7 -6 -6 -------- Run | Scr Mat Min Mat Min Exi Min Mat Sto Fac Was Fac Low Low Dat Pro Fac Total Allies 37 | . . 2 . . . . . 10 4 20 . . . . 1 . Largest Group 20 | . . 2 2 . . . . 10 3 20 . . . . 1 . Highest-Rated Group 413 | . . 58 58 . . . . 173 93 413 . . . . 94 . Highest-Rated Ally 94 | . . 31 31 . . . . 29 31 35 . . . . 94 . Total Orders 1 | . . . . . . . . 1 . . . . . . . . STAY 1 | . . . . . . . . 1 . . . . . . . . Ally Attacks 72 | . . 2 33 . . . . 23 . . . . . . 14 . Total Damage 1207 | . . 28 439 . . . . 326 . . . . . . 414 . Kills 18 | . . 2 8 . . . . 2 . . . . . . 6 . Allies Corrupted 8 | . . . . . . . . . . 8 . . . . . . Allies Melted . | . . . . . . . . . . . . . . . . . Intel | -11 -10 -10 -9 -9 -9 -8 -8 -8 -7 -7 -7 -7 -7 -7 -6 -6 ------- Run | Scr Mat Min Mat Min Exi Min Mat Sto Fac Was Fac Low Low Dat Pro Fac Robot Analysis Total 5 | . 2 . 1 . . . 2 . . . . . . . . . Derelict Logs Recovered 7 | . . 2 . 1 . . . . . . . 1 1 . 2 . Drone Launches . | . . . . . . . . . . . . . . . . . Drone Recoveries . | . . . . . . . . . . . . . . . . . Exploration | -11 -10 -10 -9 -9 -9 -8 -8 -8 -7 -7 -7 -7 -7 -7 -6 -6 ------------- Run | Scr Mat Min Mat Min Exi Min Mat Sto Fac Was Fac Low Low Dat Pro Fac Turns Passed 17859 | 78 1327 1313 2026 876 669 1124 1622 1916 4371 394 699 208 367 62 587 220 Spaces Moved 11119 | 44 631 706 915 253 371 610 724 740 3026 477 809 285 494 81 664 289 Core 4 | 4 . . . . . . . . . . . . . . . . Treads 6540 | 40 631 706 915 253 371 610 724 740 1550 . . . . . . . Legs . | . . . . . . . . . . . . . . . . . Wheels . | . . . . . . . . . . . . . . . . . Hover 4575 | . . . . . . . . . 1476 477 809 285 494 81 664 289 Flight . | . . . . . . . . . . . . . . . . . Fastest Speed 50 | 50 160 180 180 180 180 180 172 172 62 72 72 72 72 72 72 60 Average Speed 131 | 150 167 180 180 180 180 180 174 175 117 72 72 72 72 72 81 60 Slowest Speed 230 | 160 200 180 200 180 180 180 180 200 230 72 72 72 72 72 142 127 Overloaded Moves . | . . . . . . . . . . . . . . . . . Propulsion Burnouts . | . . . . . . . . . . . . . . . . . Robots Hopped . | . . . . . . . . . . . . . . . . . Cave-ins Triggered . | . . . . . . . . . . . . . . . . . Exploration Rate (%) 64 | 5 95 100 85 62 54 99 58 89 68 92 18 47 73 68 81 9 Regions Visited 16 Branch Regions 9 Pre-discovered Areas 5 | . 2 1 . . 1 . . . . . . . . . 1 . Known Exits Taken 7 | . . . . 1 . . 1 . . . 1 1 1 1 1 . Unknown Exits Taken 7 | 1 1 1 1 . 1 1 . 1 . . . . . . . . Scrap Searched 6 | . . 1 . 1 . 1 . . . . . . 1 . 2 . Spaces Dug 36 | . . . 1 . . . . 5 21 . 7 . . . 1 1 Terrain Destroyed 555 | . . 48 13 72 . 34 3 40 173 . 120 . . . 5 47 Melee 23 | . . . 1 . . . . 5 8 . 7 . . . 1 1 Projectile 5 | . . . . . . . . 3 2 . . . . . . . AOE 527 | . . 48 12 72 . 34 3 32 163 . 113 . . . 4 46 Terrain Rammed . | . . . . . . . . . . . . . . . . . Walls Destroyed . | . . . . . . . . . . . . . . . . . Machines Disabled . | . . . . . . . . . . . . . . . . . Actions | -11 -10 -10 -9 -9 -9 -8 -8 -8 -7 -7 -7 -7 -7 -7 -6 -6 --------- Run | Scr Mat Min Mat Min Exi Min Mat Sto Fac Was Fac Low Low Dat Pro Fac Total 13488 | 53 783 741 1213 664 373 622 998 1159 3604 503 894 287 498 84 692 320 Wait 1403 | . 62 26 156 394 1 . 164 220 302 1 53 . . . 7 17 Move 11104 | 43 630 705 914 252 370 609 723 739 3026 476 808 284 493 80 663 289 Hop . | . . . . . . . . . . . . . . . . . Pick Up 98 | 4 17 . 23 2 . . 15 14 15 4 1 1 . . . 2 Fast Attach 59 | 6 4 . 9 . . . 5 17 10 . 3 . . 2 3 . Attach 48 | . 2 1 6 . . 2 4 1 22 . 1 1 . . 4 4 Detach 19 | . . . 4 . . . 2 . 13 . . . . . . . Swap 140 | . 6 4 14 6 1 2 11 28 53 2 6 1 2 . 3 1 Drop 127 | . 4 . 33 2 1 . 23 36 19 2 3 . . 2 2 . Fire 400 | . 56 5 53 8 . 9 51 61 131 2 9 . 3 . 6 6 Melee 84 | . . . 1 . . . . 40 12 16 10 . . . 4 1 Ram 1 | . . . . . . . . . 1 . . . . . . . Kick . | . . . . . . . . . . . . . . . . . Crush . | . . . . . . . . . . . . . . . . . Escape Stasis 3 | . . . . . . . . 3 . . . . . . . . Rewire . | . . . . . . . . . . . . . . . . . Trap 2 | . 2 . . . . . . . . . . . . . . . Miscellaneous . | . . . . . . . . . . . . . . . . . Route ------- -11/Scrapyard -10/Materials (discovered 4 exits: *Mat x3 / [*Min]) -10/Mines (discovered 2 exits: *Mat x2) -9/Materials (discovered 5 exits: *Mat x3 / *Min x2) -9/Mines (discovered 2 exits: *Mat / *Exi) -9/Exiles (discovered 2 exits: [*Min x2]) -8/Mines (discovered 2 exits: *Mat x2) -8/Materials (discovered 2 exits: *Fac / *Sto) -8/Storage -7/Factory (discovered 4 exits: *Fac x4) -7/Waste -7/Factory (discovered 3 exits: *Fac / *Low x2) -7/Lower Caves -7/Lower Caves -7/Data Miner -6/Proximity Caves -6/Factory (discovered 1 exit: *Ext) History --------- Turn | Location | Event 6 | -11/Scrapyard | Discovered new exit (range 16) 79 | -11/Scrapyard | Entered Materials 305 | -10/Materials | Build established: Mutant 419 | -10/Materials | Discovered new exit (range 8) 500 | -10/Materials | Discovered new exit (range 13) 660 | -10/Materials | Discovered new exit (range 16) 1103 | -10/Materials | Discovered new exit (range 15) 1406 | -10/Materials | Entered Mines 1407 | -10/Mines | Learned location of Storage (-8) 1515 | -10/Mines | Found a hidden stash of uninstalled traps 1665 | -10/Mines | Learned Materials garrison access intel 1749 | -10/Mines | Discovered new exit (range 15) 1841 | -10/Mines | Learned 2 Materials zone layouts 2163 | -10/Mines | Discovered new exit (range 10) 2719 | -10/Mines | Entered Materials 2719 | -9/Materials | Accompanied by 2 allies 2719 | -9/Materials | Evolved 2 slots: Utility x1, Weapon x1 2724 | -9/Materials | Led the pair of lost Derelicts to an unsafe place 2987 | -9/Materials | Discovered new exit (range 11) 3191 | -9/Materials | Build established: Tank 3441 | -9/Materials | Discovered new exit (range 16) 3597 | -9/Materials | Discovered new exit (range 11) 3970 | -9/Materials | Repaired Med. Armor Plating? 4082 | -9/Materials | Discovered new exit (range 16) 4192 | -9/Materials | Core integrity fell below 50% 4496 | -9/Materials | Discovered new exit (range 16) 4745 | -9/Materials | Entered Mines 4856 | -9/Mines | A weapon hastily lodged in a ceiling crevice suddenly fell to the ground 4916 | -9/Mines | Discovered new exit (range 12) 5127 | -9/Mines | Assembled infested the area 5149 | -9/Mines | Identified exit to Exiles 5231 | -9/Mines | Deemed a non-threat by the Exiles lab entrance 5621 | -9/Mines | Entered Exiles 5648 | -9/Exiles | Discovered new exit (range 15) 5670 | -9/Exiles | Met 8R-AWN 5692 | -9/Exiles | Met EX-HEX 5798 | -9/Exiles | Met EX-DEC 5830 | -9/Exiles | Learned location of Zion (-6) 5915 | -9/Exiles | Discovered new exit (range 14) 6290 | -9/Exiles | Entered Mines 6422 | -8/Mines | Discovered new exit (range 11) 6832 | -8/Mines | Discovered new exit (range 8) 7414 | -8/Mines | Entered Materials 7414 | -8/Materials | Evolved 2 slots: Utility x2 7415 | -8/Materials | Loaded intel: 1 garrison access location 7735 | -8/Materials | Discovered new exit (range 16) 7738 | -8/Materials | Build established: Scavenger-Tank 7995 | -8/Materials | Identified exit to Storage 8299 | -8/Materials | Build established: Gunner 8579 | -8/Materials | Repaired Broken Adv. Sensor Array 8630 | -8/Materials | Discovered new exit (range 4) 9019 | -8/Materials | Central database locked down 9036 | -8/Materials | Entered Storage 9775 | -8/Storage | Garrison activated, responded to threat 9892 | -8/Storage | Destroyed 11 combat bots 10340 | -8/Storage | Build established: Mutant 10521 | -8/Storage | Assisted by bots powering up and referring to "LRC-V3" 10614 | -8/Storage | Discovered new exit (range 12) 10636 | -8/Storage | First assault squad dispatched 10952 | -8/Storage | Entered Factory 10952 | -7/Factory | Evolved 2 slots: Propulsion x1, Utility x1 10974 | -7/Factory | Build established: Gunner 11765 | -7/Factory | Build established: Mutant 12188 | -7/Factory | Build established: Skirmisher 12229 | -7/Factory | Discovered new exit (range 12) 12570 | -7/Factory | Build established: Mutant 12756 | -7/Factory | Discovered new exit (range 16) 13044 | -7/Factory | Identified exit to Factory 13092 | -7/Factory | Build established: Skirmisher 13575 | -7/Factory | Discovered exit to Factory (range 13) 13736 | -7/Factory | Repaired Adv. Sensor Array 13752 | -7/Factory | First assault squad dispatched 13942 | -7/Factory | Fabricated Cmb. Airjet (x2) 14048 | -7/Factory | Fabricated Cmb. Airjet (x2) 14276 | -7/Factory | Repaired Cmb. Airjet? 14550 | -7/Factory | Discovered exit to Factory (range 8) 14695 | -7/Factory | Build established: Mutant 15071 | -7/Factory | High security lockdown imminent 15151 | -7/Factory | High security lockdown engaged 15287 | -7/Factory | Destroyed 9 combat bots 15292 | -7/Factory | Lost 3 parts (1p1u1w) 15323 | -7/Factory | Sucked down chute 15323 | -7/Factory | Entered Waste 15324 | -7/Waste | Joined by Warlord forces that had cleared the area 15470 | -7/Waste | Discovered new exit (range 15) 15545 | -7/Waste | Identified exit to Factory 15717 | -7/Waste | Entered Factory 16116 | -7/Factory | Build established: Hacker-Mutant 16142 | -7/Factory | Discovered exit to Factory (range 16) 16301 | -7/Factory | Fabricated Cmb. Airjet? 16374 | -7/Factory | Identified exit to Lower Caves 16416 | -7/Factory | Entered Lower Caves 16612 | -7/Lower Caves | Discovered new exit (range 7) 16623 | -7/Lower Caves | Identified exit to Lower Caves 16624 | -7/Lower Caves | Entered another Lower Caves area 16702 | -7/Lower Caves | Encountered a Warlord checkpoint 16705 | -7/Lower Caves | Learned Factory security intel 16900 | -7/Lower Caves | Discovered new exit (range 5) 16991 | -7/Lower Caves | Identified exit to Data Miner 16991 | -7/Lower Caves | Entered Data Miner 16991 | -7/Data Miner | Discovered new exit (range 6) 16994 | -7/Data Miner | Identified exit to Proximity Caves 17007 | -7/Data Miner | Met Data Miner 17020 | -7/Data Miner | Acquired the access code to Warlord's prototype stash 17032 | -7/Data Miner | Received God Mode back door access code from Data Miner 17053 | -7/Data Miner | Entered Proximity Caves 17059 | -6/Proximity Caves | Learned Factory security intel 17116 | -6/Proximity Caves | Found Alien Artifact 17116 | -6/Proximity Caves | Identified Core Expander 17116 | -6/Proximity Caves | Installed Core Expander, added new Power slot 17259 | -6/Proximity Caves | Escorted by Enhanced Grunt 17374 | -6/Proximity Caves | Core integrity fell below 50% 17426 | -6/Proximity Caves | Learned location of Extension (-6) 17633 | -6/Proximity Caves | Discovered exit to Factory (range 6) 17640 | -6/Proximity Caves | Entered Factory 17640 | -6/Factory | Evolved 2 slots: Propulsion x1, Utility x1 17717 | -6/Factory | Discovered new exit (range 6) 17718 | -6/Factory | Identified exit to Extension 17795 | -6/Factory | Build established: Mutant 17860 | -6/Factory | Self-destructed Last Messages --------------- 17843_ G-50 Soldier system terminally corrupted. 17844_ Adv. Heat Sink fried. 17850_ G-50 Soldier unfolds itself. 17850_ Door malfunctions. 17850_ Fusion Modulator explodes. 17850_ Antimatter Reactor destroyed. 17850_ Destroyed Antimatter Reactor. 17850_ Fabricator disabled. 17850_ G-50 Soldier destroyed. 17850_ Fusion Modulator explodes. 17850_ Adv. EMP Blaster destroyed. 17850_ Destroyed Adv. EMP Blaster. 17853_ B-48 Gladiator destroyed. 17855_ R-10 Processor collects Wheel. 17857_ Cmb. Airjet destroyed. 17857_ Destroyed Cmb. Airjet. 17857_ G-50 Soldier destroyed. 17858_ U-05 Engineer lays Concrete. 17859_ R-10 Processor collects Carbon-fiber Leg. 17860_ U-05 Engineer lays Concrete. Map ----- +----------------------------------------------------+ | ?????????????????????????????????????????????????? | | ?????????????????????????????????????????????????? | | ?????????????????????????????????????????????????? | | ?????????????????????????????????????????????????? | | ?????????????????????????????????????????????????? | | ?????????????????????????????????????????????????? | | ?????????????????????????????????????????????????? | | ?????????????????????????????????????????????????? | | ?????????????????????????????????????????????????? | | ?????????????????????????????????????????????????? | | ?????????????????????????????????????????????????? | | ?????????????????????????????????????????????????? | | ?????????????????????????????????????????????????? | | ?????????????????????????????????????????????????? | | ?????????????????????????????????????????????????? | | ???????????????????????##????????????????????????? | | ?????????????????????### ###?????????????????????? | | ?????????????????#####;;;;;####??????????????????? | | ???????########### #??????????????????? | | ???????# ## #??????????????????? | | ???????# ## ##?????????????????? | | ???????# ## ;###???????????????? | | ???????#! !## ; #???????????????? | | ???????# """ ## ; #????????????????? | | ???????# """ #; ; #????????????????? | | ???????# """ #; @ ; #????????????????? | | ???????# "" #; ; #???????????????? | | ???????# "" #; #???????????????? | | ???????# #; = ##???????????????? | | ???????# """ ## %==| [ #????????????????? | | ???????# """ ##;; =g #;#####+######+#### | | ???????# """ ##### %%= | | ???????# "" ####### = | | ???????# "" / u | | ???????# ####### | | ???????# #?????#=!%%% ^ | | ???????# #?????# % ;###################?? | | ??????####+############%R #???????????????????? | | ?? w ##???????????????????? | | ?? #????????????????????? | | ?? #???????#######??????? | | ??? ######### !######## | | ??? "" | | ????#############+################### T | | ????????????????????????????????????# | | ????????????????????????????????????# ###+#### | | ????????????????????????????????????####### ?? | | ??????????????????????????????????????????# | | ??????????????????????????????????????????# | | ??????????????????????????????????????????# | +----------------------------------------------------+ Best States ------------- Heat Dissipation 64 Energy Generation 34 Energy Capacity 385 Matter Stores 300 Matter Capacity 400 Sight Range 16 Robot Scan Range 16 Terrain Scan Density 10 Armor Coverage 325 Evasion (%) 53 Targeting Accuracy 8 Launcher Accuracy 20 Recoil Reduction 3 Offensive Hacking 24 Item Schematics ----------------- Lrg. Storage Unit | -9/Materials | Scanalyzed Hacking Suite | -8/Materials | Scanalyzed Adv. Sensor Array | -8/Materials | Scanalyzed Cmb. Airjet | -7/Factory | Scanalyzed Adv. EMP Blaster | -7/Factory | Scanalyzed Combat Drone Bay | -7/Data Miner | Free Lgt. Regenerative Plating | -7/Data Miner | Free Exp. Cesium-ion Thruster | -7/Data Miner | Free Exp. Terrain Scanner | -7/Data Miner | Free Exp. Targeting Computer | -7/Data Miner | Free Exp. Transmission Jammer | -7/Data Miner | Free Robot Schematics ------------------ S-27 Virus | -7/Data Miner | Free G-50 Soldier | -7/Data Miner | Free G-67 Veteran | -7/Data Miner | Free H-66 Slayer | -7/Data Miner | Free I-36 Angel | -7/Data Miner | Free Fabricated ------------ Cmb. Airjet | x2 | -7/Factory Cmb. Airjet | x2 | -7/Factory Cmb. Airjet | x2 | -7/Factory Alien Tech Used ----------------- Core Expander Achievements -------------- None Challenges ------------ None Game ------ Seed CoolantUltimateShotgun Manual? 0 Play Time 02:38:10 Cumulative 90.5 hours Start 2020.10.16 @ 00:09:39 End 2020.10.18 @ 14:16:11 Sessions 11 Manual Loads 0 Difficulty Rogue Special Mode None Game No. 72 Rogue 72 Adventurer 0 Explorer 0 Win Type - Total 0 Types 0/0/0/0/0/0/0/0/0 Lore% 52 Gallery% 59 Achievement% 46 Wizard Run 0 Options --------- ASCII 0 Keyboard 1 Movement Numpad Keybinds 0 Fullscreen 2 Font 18/Smallcaps Map View 76x50 Tactical HUD 1 Map Filters NONE Filters NONE Steam 1 RUN: 3554e298-e533-47f3-81d9-8b286534b63e